[Event "*** Titled Tuesday Blitz"]
[Site "Chess.com"]
[Date "2019.11.05"]
[Round "5"]
[White "LimeInTheCoconut"]
[Black "kleinebeer98"]
[Result "0-1"]
[WhiteElo "2462"]
[BlackElo "2683"]
[TimeControl "180+2"]
[EndTime "14:08:44 PST"]
[Termination "kleinebeer98 won by resignation"]

1. Nf3 {[%clk 0:03:01.9]} 1... Nf6 {[%clk 0:02:59.3]} 2. c4 {[%clk 0:03:02.6]}
2... c5 {[%clk 0:03:00]} 3. g3 {[%clk 0:03:03.1]} 3... g6 {[%clk 0:02:59.9]} 4.
d4 {[%clk 0:03:03.3]} 4... cxd4 {[%clk 0:03:01]} 5. Nxd4 {[%clk 0:03:05.2]} 5...
Nc6 {[%clk 0:03:01.7]} 6. Bg2 {[%clk 0:03:04.9]} 6... Bg7 {[%clk 0:03:03.2]} 7.
Nc3 {[%clk 0:03:06]} 7... O-O {[%clk 0:03:04.3]} 8. Nc2 {[%clk 0:03:07.3]} 8...
d6 {[%clk 0:03:03.4]} 9. O-O {[%clk 0:03:08.1]} 9... Be6 {[%clk 0:03:02]} 10.
Ne3 {[%clk 0:03:08.7]} 10... Rc8 {[%clk 0:03:01]} 11. Bd2 {[%clk 0:03:07.5]}
11... Ng4 {[%clk 0:02:56.6]} 12. Nxg4 {[%clk 0:03:06.2]} 12... Bxg4 {[%clk
0:02:58.5]} 13. b3 {[%clk 0:03:05.6]} 13... Qd7 {[%clk 0:02:52.4]} 14. Rc1
{[%clk 0:03:05.7]} 14... Nd4 {[%clk 0:02:45.3]} 15. f3 {[%clk 0:03:04.6]} 15...
Bh3 {[%clk 0:02:46.2]} 16. e3 {[%clk 0:03:02.4]} 16... Bxg2 {[%clk 0:02:44.6]}
17. Kxg2 {[%clk 0:03:04.3]} 17... Nf5 {[%clk 0:02:44.1]} 18. Qe2 {[%clk
0:03:00.1]} 18... h5 {[%clk 0:02:40.7]} 19. Qd3 {[%clk 0:02:56.5]} 19... h4
{[%clk 0:02:06.9]} 20. g4 {[%clk 0:02:39.5]} 20... Nh6 {[%clk 0:02:07.9]} 21. e4
{[%clk 0:02:20.8]} 21... f5 {[%clk 0:02:03.2]} 22. exf5 {[%clk 0:01:59.7]} 22...
gxf5 {[%clk 0:02:01.3]} 23. g5 {[%clk 0:01:59.5]} 23... Nf7 {[%clk 0:02:01]} 24.
f4 {[%clk 0:01:48.7]} 24... e5 {[%clk 0:01:56.1]} 25. Nd5 {[%clk 0:01:42.3]}
25... Rce8 {[%clk 0:01:46.4]} 26. Kh1 {[%clk 0:01:40.8]} 26... Qc6 {[%clk
0:01:30.6]} 27. Qf3 {[%clk 0:01:29.2]} 27... exf4 {[%clk 0:01:31.6]} 28. Bxf4
{[%clk 0:01:26.3]} 28... Re4 {[%clk 0:01:32.8]} 29. Qxe4 {[%clk 0:01:19.3]}
29... fxe4 {[%clk 0:01:31.4]} 30. Ne7+ {[%clk 0:01:20.1]} 30... Kh7 {[%clk
0:01:33.3]} 31. Nxc6 {[%clk 0:01:22]} 31... bxc6 {[%clk 0:01:35.2]} 32. Rcd1
{[%clk 0:01:12.5]} 32... a5 {[%clk 0:01:28.8]} 33. Bxd6 {[%clk 0:01:05.3]} 33...
Nxd6 {[%clk 0:01:30.7]} 34. g6+ {[%clk 0:01:03.9]} 34... Kh6 {[%clk 0:01:30.1]}
35. Rxf8 {[%clk 0:00:55.1]} 35... Bxf8 {[%clk 0:01:32]} 36. Rf1 {[%clk 0:00:46]}
36... Bg7 {[%clk 0:01:27]} 37. Kg2 {[%clk 0:00:34.9]} 37... Kxg6 {[%clk
0:01:26]} 38. Kf2 {[%clk 0:00:30.9]} 38... Bd4+ {[%clk 0:01:27.3]} 39. Ke2
{[%clk 0:00:32]} 39... Nf5 {[%clk 0:01:29.2]} 40. Rf4 {[%clk 0:00:27.5]} 40...
Be5 {[%clk 0:01:26.1]} 41. Rxe4 {[%clk 0:00:25.7]} 41... Bxh2 {[%clk 0:01:27.5]}
42. Re6+ {[%clk 0:00:26.9]} 42... Kg5 {[%clk 0:01:28.7]} 43. Kf2 {[%clk
0:00:21.5]} 43... c5 {[%clk 0:01:15.7]} 44. Ra6 {[%clk 0:00:18.4]} 44... h3
{[%clk 0:01:04.7]} 45. Rxa5 {[%clk 0:00:15.9]} 45... Be5 {[%clk 0:00:56.1]} 46.
Ra8 {[%clk 0:00:07.7]} 46... Kf4 {[%clk 0:00:49.4]} 47. Rf8 {[%clk 0:00:06.8]}
47... Ke4 {[%clk 0:00:47.6]} 48. Rxf5 {[%clk 0:00:06.9]} 48... Kxf5 {[%clk
0:00:48.2]} 49. a3 {[%clk 0:00:03.2]} 49... Bc3 {[%clk 0:00:39.2]} 50. Kg3
{[%clk 0:00:02.5]} 50... Ke4 {[%clk 0:00:34.1]} 51. b4 {[%clk 0:00:03.2]} 51...
Bxb4 {[%clk 0:00:34.6]} 52. axb4 {[%clk 0:00:05.1]} 52... cxb4 {[%clk
0:00:36.5]} 53. c5 {[%clk 0:00:05.3]} 53... Kd5 {[%clk 0:00:38.2]} 54. c6 {[%clk
0:00:07.2]} 54... Kxc6 {[%clk 0:00:39.4]} 55. Kxh3 {[%clk 0:00:08.8]} 55... b3
{[%clk 0:00:41.3]} 0-1

[Event "*** Titled Tuesday Blitz"]
[Site "Chess.com"]
[Date "2019.11.05"]
[Round "5"]
[White "TomsKantans"]
[Black "Orest_Vovk"]
[Result "1-0"]
[WhiteElo "2603"]
[BlackElo "2415"]
[TimeControl "180+2"]
[EndTime "14:08:44 PST"]
[Termination "TomsKantans won on time"]

1. e4 {[%clk 0:03:01.9]} 1... Nc6 {[%clk 0:02:57.2]} 2. Nf3 {[%clk 0:02:54.4]}
2... f5 {[%clk 0:02:57.5]} 3. exf5 {[%clk 0:02:55.1]} 3... d5 {[%clk 0:02:58.7]}
4. d4 {[%clk 0:02:50.4]} 4... Bxf5 {[%clk 0:02:59.5]} 5. Bb5 {[%clk 0:02:33.8]}
5... Qd6 {[%clk 0:02:57.6]} 6. Ne5 {[%clk 0:02:27.8]} 6... Nf6 {[%clk
0:02:56.4]} 7. O-O {[%clk 0:02:26.2]} 7... Nd7 {[%clk 0:02:56.2]} 8. Bf4 {[%clk
0:02:17.4]} 8... Ndxe5 {[%clk 0:02:54.2]} 9. Bxe5 {[%clk 0:02:18.5]} 9... Qg6
{[%clk 0:02:54.5]} 10. Nc3 {[%clk 0:02:10.2]} 10... e6 {[%clk 0:02:54]} 11. Qe2
{[%clk 0:01:58.8]} 11... Be7 {[%clk 0:02:43.9]} 12. Bxc7 {[%clk 0:01:52.6]}
12... O-O {[%clk 0:02:42.8]} 13. Bxc6 {[%clk 0:01:53.4]} 13... bxc6 {[%clk
0:02:43.6]} 14. Rfe1 {[%clk 0:01:42.5]} 14... Bb4 {[%clk 0:02:21.2]} 15. Qd2
{[%clk 0:01:24.8]} 15... Bxc2 {[%clk 0:02:06]} 16. Re3 {[%clk 0:01:17.9]} 16...
Rf7 {[%clk 0:01:44.5]} 17. Be5 {[%clk 0:01:17.5]} 17... Raf8 {[%clk 0:01:32.6]}
18. Rg3 {[%clk 0:01:14.2]} 18... Qf5 {[%clk 0:01:26.9]} 19. Rc1 {[%clk
0:00:53.1]} 19... Bb1 {[%clk 0:00:53]} 20. a3 {[%clk 0:00:16.1]} 20... Bxc3
{[%clk 0:00:51.3]} 21. Rcxc3 {[%clk 0:00:17.4]} 21... Qe4 {[%clk 0:00:26.6]} 22.
Rxc6 {[%clk 0:00:14.9]} 22... g6 {[%clk 0:00:21.4]} 23. f3 {[%clk 0:00:13.3]}
23... Qf5 {[%clk 0:00:17.1]} 24. h4 {[%clk 0:00:13.9]} 24... Qh5 {[%clk
0:00:14.2]} 25. Qg5 {[%clk 0:00:14.6]} 25... Qxg5 {[%clk 0:00:13.3]} 26. hxg5
{[%clk 0:00:16.5]} 26... Bf5 {[%clk 0:00:14.6]} 27. f4 {[%clk 0:00:15.5]} 27...
Rb7 {[%clk 0:00:13.9]} 28. b4 {[%clk 0:00:16.6]} 28... Ra8 {[%clk 0:00:13]} 29.
Rgc3 {[%clk 0:00:16.4]} 29... Rf8 {[%clk 0:00:06.7]} 30. Rc7 {[%clk 0:00:15.9]}
30... Rf7 {[%clk 0:00:03.6]} 31. Rc8+ {[%clk 0:00:17.2]} 31... Rf8 {[%clk
0:00:04.6]} 32. Kf2 {[%clk 0:00:15.3]} 32... Rf7 {[%clk 0:00:04.4]} 33. Ke3
{[%clk 0:00:16]} 33... Be4 {[%clk 0:00:05.6]} 34. g4 {[%clk 0:00:16.7]} 34...
Rxc8 {[%clk 0:00:05.4]} 35. Rxc8+ {[%clk 0:00:18.5]} 35... Rf8 {[%clk
0:00:07.3]} 36. Rc6 {[%clk 0:00:18.4]} 36... Re8 {[%clk 0:00:06]} 37. Rc7 {[%clk
0:00:18.4]} 37... Kf8 {[%clk 0:00:04.4]} 38. Rxa7 {[%clk 0:00:17.9]} 38... Rc8
{[%clk 0:00:04.7]} 39. Bc7 {[%clk 0:00:10.2]} 39... Bc2 {[%clk 0:00:02.6]} 40.
b5 {[%clk 0:00:11.3]} 40... Ke8 {[%clk 0:00:02.3]} 41. b6 {[%clk 0:00:12]} 41...
Kd7 {[%clk 0:00:02.3]} 42. Be5+ {[%clk 0:00:12.7]} 42... Kc6 {[%clk 0:00:03.2]}
43. b7 {[%clk 0:00:14.2]} 1-0

[Event "*** Titled Tuesday Blitz"]
[Site "Chess.com"]
[Date "2019.11.05"]
[Round "5"]
[White "ChessBitl"]
[Black "NikolaMa2000"]
[Result "1-0"]
[WhiteElo "2347"]
[BlackElo "2014"]
[TimeControl "180+2"]
[EndTime "14:08:44 PST"]
[Termination "ChessBitl won by resignation"]

1. e4 {[%clk 0:03:00.8]} 1... e6 {[%clk 0:03:00.3]} 2. d4 {[%clk 0:03:01.6]}
2... d5 {[%clk 0:03:01.4]} 3. Nd2 {[%clk 0:03:03.1]} 3... c5 {[%clk 0:02:59.9]}
4. Ngf3 {[%clk 0:03:03.4]} 4... dxe4 {[%clk 0:02:48]} 5. Nxe4 {[%clk 0:03:03.6]}
5... Nf6 {[%clk 0:02:47.7]} 6. Bg5 {[%clk 0:02:58.4]} 6... Qa5+ {[%clk
0:02:25.1]} 7. Bd2 {[%clk 0:02:53.1]} 7... Qc7 {[%clk 0:02:25.1]} 8. Bb5+ {[%clk
0:02:46]} 8... Bd7 {[%clk 0:02:20.7]} 9. Nxf6+ {[%clk 0:02:39.5]} 9... gxf6
{[%clk 0:02:18.8]} 10. Bxd7+ {[%clk 0:02:35.4]} 10... Qxd7 {[%clk 0:02:12.8]}
11. Be3 {[%clk 0:02:28.3]} 11... Rg8 {[%clk 0:01:56.1]} 12. O-O {[%clk
0:02:25.6]} 12... cxd4 {[%clk 0:01:49]} 13. Nxd4 {[%clk 0:02:17.9]} 13... Nc6
{[%clk 0:01:38]} 14. Nb5 {[%clk 0:02:18.3]} 14... a6 {[%clk 0:01:21.1]} 15.
Qxd7+ {[%clk 0:02:14.4]} 15... Kxd7 {[%clk 0:01:21.8]} 16. Rad1+ {[%clk
0:02:16]} 16... Kc8 {[%clk 0:01:06.4]} 17. Nc3 {[%clk 0:02:12.6]} 17... Be7
{[%clk 0:00:53.4]} 18. Na4 {[%clk 0:02:12.6]} 18... Kc7 {[%clk 0:00:43.8]} 19.
Rd2 {[%clk 0:02:05.3]} 19... Ne5 {[%clk 0:00:23.6]} 20. Re2 {[%clk 0:01:33.3]}
20... Nc4 {[%clk 0:00:19.7]} 21. Bc1 {[%clk 0:01:30.2]} 21... b5 {[%clk
0:00:19.1]} 22. Nc3 {[%clk 0:01:30.8]} 22... Rad8 {[%clk 0:00:19.4]} 23. b3
{[%clk 0:01:31.3]} 23... Nb6 {[%clk 0:00:19.4]} 24. Bf4+ {[%clk 0:01:25.8]}
24... Kb7 {[%clk 0:00:19.7]} 25. Ne4 {[%clk 0:01:21.4]} 25... f5 {[%clk
0:00:18.7]} 26. Ng3 {[%clk 0:01:11.5]} 26... Nd5 {[%clk 0:00:17.5]} 27. Be5
{[%clk 0:01:12.6]} 27... Bf6 {[%clk 0:00:15.9]} 28. Bxf6 {[%clk 0:01:08.3]}
28... Nxf6 {[%clk 0:00:17.1]} 29. Rfe1 {[%clk 0:01:02.5]} 29... Rd7 {[%clk
0:00:13.3]} 30. f3 {[%clk 0:01:02.8]} 30... Rgd8 {[%clk 0:00:13.7]} 31. Kf2
{[%clk 0:01:04.1]} 31... Nd5 {[%clk 0:00:14.7]} 32. Rd2 {[%clk 0:00:53.5]} 32...
Nc3 {[%clk 0:00:13.7]} 33. Rxd7+ {[%clk 0:00:49.4]} 33... Rxd7 {[%clk
0:00:15.6]} 34. a4 {[%clk 0:00:39.2]} 34... Rd2+ {[%clk 0:00:14.4]} 35. Kg1
{[%clk 0:00:36.3]} 35... Rxc2 {[%clk 0:00:15.4]} 36. axb5 {[%clk 0:00:37.7]}
36... axb5 {[%clk 0:00:16]} 37. Nh5 {[%clk 0:00:36.5]} 37... Nd5 {[%clk
0:00:16.2]} 38. g4 {[%clk 0:00:30.3]} 38... fxg4 {[%clk 0:00:15.8]} 39. fxg4
{[%clk 0:00:31.2]} 39... Rb2 {[%clk 0:00:17.1]} 40. Rf1 {[%clk 0:00:31.1]} 40...
f5 {[%clk 0:00:10.7]} 41. gxf5 {[%clk 0:00:31.6]} 41... exf5 {[%clk 0:00:11.6]}
42. Rxf5 {[%clk 0:00:33.1]} 42... Nc3 {[%clk 0:00:11.4]} 43. Rf7+ {[%clk
0:00:31.4]} 43... Kc6 {[%clk 0:00:12.5]} 44. Rxh7 {[%clk 0:00:32.9]} 44... Rxb3
{[%clk 0:00:14]} 45. Nf4 {[%clk 0:00:33.5]} 45... Nd5 {[%clk 0:00:13.3]} 46.
Rh6+ {[%clk 0:00:33.7]} 46... Kc5 {[%clk 0:00:12.8]} 47. Rh5 {[%clk 0:00:35.2]}
47... Rb1+ {[%clk 0:00:12.2]} 48. Kf2 {[%clk 0:00:36.4]} 48... Rb2+ {[%clk
0:00:13.3]} 49. Ke1 {[%clk 0:00:37]} 49... Rb1+ {[%clk 0:00:13.3]} 50. Kd2
{[%clk 0:00:37.8]} 50... Rb2+ {[%clk 0:00:13]} 51. Kc1 {[%clk 0:00:38]} 51...
Rf2 {[%clk 0:00:09.5]} 52. Nxd5 {[%clk 0:00:37.6]} 52... Kc4 {[%clk 0:00:09.2]}
53. Ne3+ {[%clk 0:00:36.9]} 53... Kc3 {[%clk 0:00:08.6]} 54. Nd1+ {[%clk
0:00:37.6]} 1-0

[Event "*** Titled Tuesday Blitz"]
[Site "Chess.com"]
[Date "2019.11.05"]
[Round "5"]
[White "medalja"]
[Black "Heineccius"]
[Result "0-1"]
[WhiteElo "2393"]
[BlackElo "2594"]
[TimeControl "180+2"]
[EndTime "14:09:00 PST"]
[Termination "Heineccius won by resignation"]

1. d4 {[%clk 0:03:01.9]} 1... Nf6 {[%clk 0:02:59.3]} 2. c4 {[%clk 0:03:03.2]}
2... e6 {[%clk 0:03:00.5]} 3. Nf3 {[%clk 0:03:04.6]} 3... Bb4+ {[%clk
0:03:00.4]} 4. Bd2 {[%clk 0:03:05.3]} 4... a5 {[%clk 0:03:01.3]} 5. Nc3 {[%clk
0:03:02.9]} 5... d6 {[%clk 0:02:55.4]} 6. Qc2 {[%clk 0:03:03.7]} 6... Nbd7
{[%clk 0:02:45.4]} 7. e4 {[%clk 0:03:03.7]} 7... e5 {[%clk 0:02:43]} 8. a3
{[%clk 0:02:41.7]} 8... Bxc3 {[%clk 0:02:40]} 9. Bxc3 {[%clk 0:02:42.9]} 9...
O-O {[%clk 0:02:27.6]} 10. dxe5 {[%clk 0:02:17.8]} 10... Nxe5 {[%clk 0:02:28.4]}
11. Nxe5 {[%clk 0:02:17.4]} 11... dxe5 {[%clk 0:02:29.3]} 12. Bxe5 {[%clk
0:02:18.4]} 12... Re8 {[%clk 0:02:20.3]} 13. Rd1 {[%clk 0:02:11.8]} 13... Qe7
{[%clk 0:02:18.3]} 14. Bxf6 {[%clk 0:02:10.5]} 14... Qxf6 {[%clk 0:02:19.4]} 15.
Be2 {[%clk 0:02:00.9]} 15... Qg6 {[%clk 0:02:00.1]} 16. O-O {[%clk 0:01:52.3]}
16... Bh3 {[%clk 0:01:33.6]} 17. Bf3 {[%clk 0:01:52.5]} 17... Be6 {[%clk
0:01:25.8]} 18. c5 {[%clk 0:01:51.5]} 18... a4 {[%clk 0:01:25.3]} 19. Qc3 {[%clk
0:01:50.8]} 19... Bb3 {[%clk 0:01:04.6]} 20. Rde1 {[%clk 0:01:26.9]} 20... Rad8
{[%clk 0:01:01.3]} 21. Qb4 {[%clk 0:00:59.3]} 21... b6 {[%clk 0:00:58.4]} 22. e5
{[%clk 0:00:52.8]} 22... Qh6 {[%clk 0:00:33.2]} 23. g3 {[%clk 0:00:27.3]} 23...
Qd2 {[%clk 0:00:29.8]} 24. Qh4 {[%clk 0:00:13.6]} 24... Qxb2 {[%clk 0:00:24.1]}
25. Bc6 {[%clk 0:00:14]} 25... Rf8 {[%clk 0:00:23.4]} 26. f4 {[%clk 0:00:13.5]}
26... Qd4+ {[%clk 0:00:23.4]} 27. Kh1 {[%clk 0:00:13.7]} 27... Qxc5 {[%clk
0:00:24.9]} 28. Be4 {[%clk 0:00:14.3]} 28... h6 {[%clk 0:00:24.2]} 29. Qg4
{[%clk 0:00:12.3]} 29... Bd5 {[%clk 0:00:24]} 30. f5 {[%clk 0:00:11.4]} 30...
Bxe4+ {[%clk 0:00:24.3]} 31. Qxe4 {[%clk 0:00:13.3]} 31... Rd4 {[%clk
0:00:24.8]} 32. Qe3 {[%clk 0:00:13.9]} 32... Qd5+ {[%clk 0:00:25.4]} 33. Kg1
{[%clk 0:00:14.8]} 33... Rd3 {[%clk 0:00:26.4]} 34. Qe4 {[%clk 0:00:15.1]} 34...
Qxe4 {[%clk 0:00:27.1]} 35. Rxe4 {[%clk 0:00:17]} 35... Rxa3 {[%clk 0:00:28.5]}
36. Rc1 {[%clk 0:00:17.4]} 36... c5 {[%clk 0:00:28]} 37. e6 {[%clk 0:00:18.4]}
37... fxe6 {[%clk 0:00:29]} 38. fxe6 {[%clk 0:00:20.3]} 38... Re8 {[%clk
0:00:29.9]} 39. Rd1 {[%clk 0:00:21.4]} 39... Re7 {[%clk 0:00:28.3]} 40. Rd8+
{[%clk 0:00:22.2]} 40... Kh7 {[%clk 0:00:27.8]} 41. Rd7 {[%clk 0:00:19.2]} 41...
Rxd7 {[%clk 0:00:27.7]} 42. exd7 {[%clk 0:00:21.1]} 42... Rd3 {[%clk 0:00:28.4]}
43. Rxa4 {[%clk 0:00:15]} 43... Rxd7 {[%clk 0:00:28.9]} 44. Kf2 {[%clk
0:00:16.6]} 44... b5 {[%clk 0:00:29.3]} 45. Ra5 {[%clk 0:00:17.4]} 45... Rb7
{[%clk 0:00:30.4]} 46. Ke3 {[%clk 0:00:18.6]} 46... Kg6 {[%clk 0:00:30.6]} 47.
Kd3 {[%clk 0:00:19.7]} 47... Kg5 {[%clk 0:00:31.8]} 48. Ra6 {[%clk 0:00:19.5]}
48... h5 {[%clk 0:00:32.8]} 49. Kc3 {[%clk 0:00:20]} 49... Kg4 {[%clk
0:00:30.5]} 50. Rc6 {[%clk 0:00:19.4]} 50... c4 {[%clk 0:00:30.2]} 51. Rg6+
{[%clk 0:00:20.1]} 51... Kh3 {[%clk 0:00:30.9]} 52. Rg5 {[%clk 0:00:21.5]} 52...
b4+ {[%clk 0:00:31.5]} 53. Kxc4 {[%clk 0:00:19.6]} 53... b3 {[%clk 0:00:32.5]}
54. Rxh5+ {[%clk 0:00:21]} 54... Kg2 {[%clk 0:00:32.6]} 55. Ra5 {[%clk
0:00:19.3]} 55... b2 {[%clk 0:00:33.4]} 56. Ra2 {[%clk 0:00:19.1]} 56... Kg1
{[%clk 0:00:34.7]} 0-1

[Event "*** Titled Tuesday Blitz"]
[Site "Chess.com"]
[Date "2019.11.05"]
[Round "5"]
[White "ChessWarrior7197"]
[Black "AryanTari"]
[Result "1-0"]
[WhiteElo "2956"]
[BlackElo "2852"]
[TimeControl "180+2"]
[EndTime "14:09:01 PST"]
[Termination "ChessWarrior7197 won by resignation"]

1. e4 {[%clk 0:03:01.9]} 1... c6 {[%clk 0:03:01]} 2. d4 {[%clk 0:03:02.2]} 2...
d5 {[%clk 0:03:02.6]} 3. Nc3 {[%clk 0:03:04.1]} 3... dxe4 {[%clk 0:03:00.8]} 4.
Nxe4 {[%clk 0:03:06]} 4... Bf5 {[%clk 0:03:02.5]} 5. Ng3 {[%clk 0:03:06.3]} 5...
Bg6 {[%clk 0:03:04.2]} 6. h4 {[%clk 0:03:07.5]} 6... h6 {[%clk 0:03:05.7]} 7.
Nf3 {[%clk 0:03:08.3]} 7... e6 {[%clk 0:03:06.5]} 8. h5 {[%clk 0:03:09.5]} 8...
Bh7 {[%clk 0:03:07.8]} 9. Bd3 {[%clk 0:03:11.1]} 9... Bxd3 {[%clk 0:03:07.9]}
10. Qxd3 {[%clk 0:03:13]} 10... Nf6 {[%clk 0:03:03.9]} 11. Bd2 {[%clk
0:03:13.5]} 11... c5 {[%clk 0:03:05]} 12. O-O-O {[%clk 0:03:13.2]} 12... Nc6
{[%clk 0:03:01]} 13. Be3 {[%clk 0:03:09.2]} 13... Rc8 {[%clk 0:02:36.9]} 14.
Rhe1 {[%clk 0:03:00.8]} 14... Nb4 {[%clk 0:02:35.8]} 15. Qb5+ {[%clk 0:02:59.8]}
15... Qd7 {[%clk 0:02:36]} 16. Qxd7+ {[%clk 0:02:58.5]} 16... Nxd7 {[%clk
0:02:37.9]} 17. c3 {[%clk 0:02:51.3]} 17... Nd5 {[%clk 0:02:33.8]} 18. Ne4
{[%clk 0:02:50.3]} 18... Be7 {[%clk 0:01:47.6]} 19. dxc5 {[%clk 0:02:48.8]}
19... Nxe3 {[%clk 0:01:46.3]} 20. Rxe3 {[%clk 0:02:50.1]} 20... Nxc5 {[%clk
0:01:47.8]} 21. Nd6+ {[%clk 0:02:50.2]} 21... Bxd6 {[%clk 0:01:48.4]} 22. Rxd6
{[%clk 0:02:52.1]} 22... Ke7 {[%clk 0:01:49.9]} 23. Rd2 {[%clk 0:02:47.5]} 23...
Rhd8 {[%clk 0:01:48.9]} 24. Nd4 {[%clk 0:02:48]} 24... Rd5 {[%clk 0:01:42.4]}
25. Nxe6 {[%clk 0:02:38.7]} 25... Nd3+ {[%clk 0:01:19]} 26. Rdxd3 {[%clk
0:02:34.7]} 26... Rxd3 {[%clk 0:01:20.9]} 27. Rxd3 {[%clk 0:02:34.8]} 27... fxe6
{[%clk 0:01:22.4]} 28. f3 {[%clk 0:02:22.6]} 28... Rg8 {[%clk 0:01:13.9]} 29. g4
{[%clk 0:02:21]} 29... g6 {[%clk 0:01:13.5]} 30. hxg6 {[%clk 0:02:22.9]} 30...
Rxg6 {[%clk 0:01:15.4]} 31. Kc2 {[%clk 0:02:24.3]} 31... h5 {[%clk 0:01:16.3]}
32. gxh5 {[%clk 0:02:24.3]} 32... Rg5 {[%clk 0:01:15]} 33. Rd4 {[%clk 0:02:25]}
33... Rxh5 {[%clk 0:01:15.6]} 34. Ra4 {[%clk 0:02:22.4]} 34... a6 {[%clk
0:01:12.8]} 35. Rb4 {[%clk 0:02:20.5]} 35... b5 {[%clk 0:01:13.7]} 36. a4 {[%clk
0:02:21.2]} 36... Kd6 {[%clk 0:01:11.8]} 37. axb5 {[%clk 0:02:21.7]} 37... axb5
{[%clk 0:01:12.8]} 38. Rd4+ {[%clk 0:02:21.7]} 38... Kc6 {[%clk 0:01:13.4]} 39.
Kd3 {[%clk 0:02:21.1]} 39... Rh1 {[%clk 0:01:08.1]} 40. Re4 {[%clk 0:02:04.5]}
40... Kd6 {[%clk 0:01:05.3]} 41. Re2 {[%clk 0:01:59.4]} 41... Rf1 {[%clk
0:00:57.1]} 42. Ke4 {[%clk 0:01:59.7]} 42... Rd1 {[%clk 0:00:58.1]} 43. Re3
{[%clk 0:01:59.6]} 43... Rb1 {[%clk 0:00:59.2]} 44. b4 {[%clk 0:01:59.7]} 44...
Rc1 {[%clk 0:00:55.2]} 45. Rd3+ {[%clk 0:01:57.2]} 45... Kc6 {[%clk 0:00:55.9]}
46. Ke5 {[%clk 0:01:41.7]} 46... Re1+ {[%clk 0:00:57]} 47. Kf6 {[%clk
0:01:41.1]} 47... Re2 {[%clk 0:00:56.4]} 48. f4 {[%clk 0:01:15.2]} 48... Re4
{[%clk 0:00:47.6]} 49. Rd4 {[%clk 0:01:15.8]} 49... Re3 {[%clk 0:00:48.8]} 50.
Ke7 {[%clk 0:01:16.6]} 50... Kc7 {[%clk 0:00:26.1]} 51. Rd7+ {[%clk 0:01:12.1]}
51... Kc8 {[%clk 0:00:27.3]} 52. Rd6 {[%clk 0:00:54.3]} 52... Re4 {[%clk
0:00:28.3]} 53. Rd4 {[%clk 0:00:55.2]} 53... Re3 {[%clk 0:00:28.3]} 54. Kd6
{[%clk 0:00:56.6]} 54... Re1 {[%clk 0:00:06.4]} 55. Kc6 {[%clk 0:00:53.8]} 55...
e5 {[%clk 0:00:06.2]} 56. fxe5 {[%clk 0:00:50.5]} 56... Rxe5 {[%clk 0:00:08.1]}
57. Rd5 {[%clk 0:00:51.5]} 57... Re3 {[%clk 0:00:09.6]} 58. Rc5 {[%clk
0:00:52.4]} 1-0

[Event "*** Titled Tuesday Blitz"]
[Site "Chess.com"]
[Date "2019.11.05"]
[Round "5"]
[White "DeGrootteZ"]
[Black "Lestofante90"]
[Result "1-0"]
[WhiteElo "2624"]
[BlackElo "2830"]
[TimeControl "180+2"]
[EndTime "14:09:04 PST"]
[Termination "DeGrootteZ won by resignation"]

1. e4 {[%clk 0:03:01.9]} 1... e5 {[%clk 0:02:59.4]} 2. Nf3 {[%clk 0:03:03]} 2...
Nc6 {[%clk 0:02:51.2]} 3. Bc4 {[%clk 0:03:03.5]} 3... Bc5 {[%clk 0:02:47.8]} 4.
d3 {[%clk 0:03:03.1]} 4... Nf6 {[%clk 0:02:47.3]} 5. O-O {[%clk 0:03:02.8]} 5...
O-O {[%clk 0:02:44.9]} 6. c3 {[%clk 0:03:00.6]} 6... Bb6 {[%clk 0:02:39.2]} 7.
Bb3 {[%clk 0:02:58.8]} 7... d6 {[%clk 0:02:38.8]} 8. Nbd2 {[%clk 0:02:59.2]}
8... Ne7 {[%clk 0:02:38.7]} 9. h3 {[%clk 0:02:58.4]} 9... Ng6 {[%clk 0:02:39.9]}
10. Re1 {[%clk 0:02:59.6]} 10... Re8 {[%clk 0:02:34.5]} 11. Nf1 {[%clk
0:02:56.4]} 11... Be6 {[%clk 0:02:29.5]} 12. Ng3 {[%clk 0:02:56.5]} 12... h6
{[%clk 0:02:24.8]} 13. Bxe6 {[%clk 0:02:39.3]} 13... Rxe6 {[%clk 0:02:23.9]} 14.
d4 {[%clk 0:02:39.3]} 14... d5 {[%clk 0:01:39.6]} 15. exd5 {[%clk 0:01:47.9]}
15... Qxd5 {[%clk 0:01:39.2]} 16. dxe5 {[%clk 0:01:48.2]} 16... Qxd1 {[%clk
0:01:28.2]} 17. Rxd1 {[%clk 0:01:50.1]} 17... Nxe5 {[%clk 0:01:27]} 18. Nxe5
{[%clk 0:01:33.1]} 18... Rxe5 {[%clk 0:01:28.9]} 19. a4 {[%clk 0:01:28]} 19...
g5 {[%clk 0:01:13]} 20. Kf1 {[%clk 0:01:05.1]} 20... Rae8 {[%clk 0:00:53.2]} 21.
f4 {[%clk 0:01:03.6]} 21... Rc5 {[%clk 0:00:36.3]} 22. Re1 {[%clk 0:00:50.2]}
22... Rxe1+ {[%clk 0:00:31]} 23. Kxe1 {[%clk 0:00:52.1]} 23... Rd5 {[%clk
0:00:13.8]} 24. Bd2 {[%clk 0:00:36.4]} 24... Bf2+ {[%clk 0:00:14.5]} 25. Kxf2
{[%clk 0:00:36.1]} 25... Rxd2+ {[%clk 0:00:16.1]} 26. Kf3 {[%clk 0:00:34]} 26...
Rxb2 {[%clk 0:00:17]} 27. Nf5 {[%clk 0:00:26.3]} 27... Kh7 {[%clk 0:00:15.4]}
28. Re1 {[%clk 0:00:21.2]} 28... Nd5 {[%clk 0:00:14.7]} 29. fxg5 {[%clk
0:00:20.4]} 29... hxg5 {[%clk 0:00:15.7]} 30. c4 {[%clk 0:00:21.8]} 30... Nf4
{[%clk 0:00:13]} 31. g3 {[%clk 0:00:19.9]} 31... Nd3 {[%clk 0:00:09.2]} 32. Re7
{[%clk 0:00:20.3]} 32... Kg6 {[%clk 0:00:09.6]} 33. Ne3 {[%clk 0:00:19.4]} 33...
Rf2+ {[%clk 0:00:07.1]} 34. Ke4 {[%clk 0:00:19.9]} 34... Nc5+ {[%clk 0:00:05.6]}
35. Kd4 {[%clk 0:00:19]} 35... Nxa4 {[%clk 0:00:06.8]} 36. Rxc7 {[%clk
0:00:18.5]} 36... b6 {[%clk 0:00:08.2]} 37. Rxa7 {[%clk 0:00:17.6]} 37... Rd2+
{[%clk 0:00:08.4]} 38. Ke4 {[%clk 0:00:17.8]} 38... Nc5+ {[%clk 0:00:09.4]} 39.
Kf3 {[%clk 0:00:19.2]} 39... Rd3 {[%clk 0:00:10.9]} 40. Ke2 {[%clk 0:00:19.7]}
40... Rb3 {[%clk 0:00:10.9]} 41. Ng4 {[%clk 0:00:18]} 41... f6 {[%clk
0:00:10.7]} 42. Ne3 {[%clk 0:00:18.3]} 42... Ne4 {[%clk 0:00:11.6]} 43. g4
{[%clk 0:00:18.7]} 43... Nc3+ {[%clk 0:00:12.3]} 44. Kf2 {[%clk 0:00:13.2]}
44... Ne4+ {[%clk 0:00:12.4]} 45. Ke2 {[%clk 0:00:14.3]} 45... Rb2+ {[%clk
0:00:09.5]} 46. Kd3 {[%clk 0:00:12.1]} 46... Nf2+ {[%clk 0:00:09.2]} 47. Kc3
{[%clk 0:00:10.6]} 47... Nd1+ {[%clk 0:00:05]} 48. Nxd1 {[%clk 0:00:11.6]} 48...
Rh2 {[%clk 0:00:06.9]} 49. Ne3 {[%clk 0:00:12.1]} 49... Rxh3 {[%clk 0:00:08.2]}
50. Kd4 {[%clk 0:00:13.7]} 50... f5 {[%clk 0:00:09.5]} 51. gxf5+ {[%clk
0:00:14.2]} 51... Kf6 {[%clk 0:00:09.5]} 52. Rb7 {[%clk 0:00:15.7]} 52... Rh4+
{[%clk 0:00:10.4]} 53. Kd3 {[%clk 0:00:16.4]} 53... g4 {[%clk 0:00:11.3]} 54.
Rxb6+ {[%clk 0:00:17.8]} 54... Ke5 {[%clk 0:00:12.5]} 55. Rg6 {[%clk 0:00:18.8]}
55... Kf4 {[%clk 0:00:13.9]} 56. Rxg4+ {[%clk 0:00:19.1]} 1-0